bitfinex/quotes_SOLUSD_20250401
["timestamp","ask_amount","ask_price","bid_price","bid_amount"]
[1743515071126,18.31763253,127.88,127.83,18.64964886]
[1743515071829,27.3951,127.9,127.84,20.0]
[1743515072022,26.13743253,127.88,127.84,20.0]
[1743515072222,18.31763253,127.88,127.84,20.0]
[1743515072423,18.31763253,127.88,127.84,27.8222]
[1743515073338,7.8192,127.89,127.84,27.8222]
[1743515073543,26.13683253,127.89,127.84,27.8222]
[1743515073853,0.03,127.9,127.85,18.64964886]
[1743515074024,0.03,127.9,127.86,7.821]
[1743515074538,0.03,127.9,127.85,26.47124886]
[1743515075941,0.03,127.9,127.89,38.64964886]
[1743515076143,0.03,127.9,127.89,46.46884886]
[1743515076726,0.03,127.9,127.89,38.64964886]
[1743515077124,0.03,127.9,127.87,7.8202]
[1743515077439,0.03,127.9,127.85,7.8212]
[1743515077638,18.31763253,127.86,127.84,26.46964886]
[1743515078333,18.31763253,127.87,127.84,15.6421]
[1743515078541,6.0951,127.9,127.84,15.6421]
[1743515078848,18.31763253,127.88,127.84,15.6421]
[1743515079224,0.03,127.9,127.84,15.6421]
[1743515079442,18.31763253,127.88,127.84,15.6421]
[1743515080049,26.13873253,127.86,127.84,7.82]
[1743515080344,18.31763253,127.85,127.84,20.0]
[1743515080554,7.8192,127.89,127.84,20.0]
[1743515080846,18.31763253,127.87,127.84,20.0]
[1743515081049,18.31763253,127.86,127.84,20.0]
[1743515081731,18.31763253,127.85,127.84,20.0]
[1743515082327,0.03,127.88,127.84,27.8222]
[1743515082524,18.34763253,127.88,127.84,27.8222]
[1743515083140,18.31763253,127.87,127.84,27.8222]
[1743515083852,18.34763253,127.88,127.84,27.8222]
[1743515085433,18.31763253,127.87,127.84,27.8222]
[1743515085629,18.31763253,127.86,127.84,20.0]
[1743515085837,18.31763253,127.85,127.84,20.0]
[1743515086031,18.31763253,127.85,127.83,0.063]
[1743515088429,26.13923253,127.85,127.83,0.063]
[1743515088860,18.31763253,127.85,127.83,0.063]
[1743515089564,7.8213,127.86,127.83,0.063]
[1743515089866,18.31763253,127.84,127.83,0.063]
[1743515090939,26.13983253,127.84,127.83,0.063]
[1743515094567,18.31763253,127.84,127.83,0.063]
[1743515095773,26.13983253,127.84,127.83,0.063]
[1743515096174,18.31763253,127.84,127.83,0.063]
[1743515096861,26.13983253,127.84,127.83,0.063]
[1743515099482,26.13983253,127.84,127.81,0.063]
[1743515099665,18.31763253,127.82,127.81,0.063]
[1743515100374,6.4797,127.8,127.75,12.13388219]
[1743515100559,18.31763253,127.76,127.75,12.13388219]
[1743515101281,9.3982,127.81,127.75,19.96158219]
[1743515101459,1.5737,127.81,127.75,19.96158219]
[1743515101767,18.31763253,127.79,127.75,19.96158219]
[1743515101969,18.31763253,127.79,127.75,26.47734886]
[1743515102267,18.31763253,127.79,127.75,7.8277]
[1743515103171,18.31763253,127.78,127.75,7.8277]
[1743515103672,18.31763253,127.78,127.74,7.8281]
[1743515104063,7.8256,127.79,127.74,7.8281]
[1743515104064,18.31763253,127.79,127.74,7.8281]
[1743515104271,18.31763253,127.78,127.74,7.8281]
[1743515104471,18.31763253,127.77,127.74,7.8281]
[1743515104950,18.31763253,127.76,127.72,12.19688219]
[1743515105155,18.31763253,127.76,127.72,27.72618219]
[1743515105475,18.31763253,127.76,127.72,20.02618219]
[1743515105664,18.31763253,127.77,127.72,20.02618219]
[1743515105860,18.31763253,127.77,127.73,18.64964886]
[1743515106775,18.31763253,127.76,127.73,18.64964886]
[1743515107277,18.31763253,127.77,127.73,18.64964886]
[1743515107473,18.31763253,127.77,127.74,7.8284]
[1743515107652,18.31763253,127.77,127.73,7.8288]
[1743515107861,18.31763253,127.76,127.72,18.71264886]
[1743515108070,18.31763253,127.77,127.72,26.54204886]
[1743515108285,7.8256,127.79,127.72,26.54204886]
[1743515108483,18.31763253,127.77,127.72,26.54204886]
[1743515108780,18.31763253,127.76,127.72,26.54204886]
[1743515108969,18.31763253,127.77,127.72,26.54204886]
[1743515109279,18.31763253,127.76,127.72,26.54204886]
[1743515109474,18.31763253,127.75,127.72,0.063]
[1743515109690,18.31763253,127.73,127.72,0.063]
[1743515111381,26.14663253,127.73,127.72,0.063]
[1743515113269,46.61590453,127.73,127.72,0.063]
[1743515113964,46.61590453,127.73,127.7,0.063]
[1743515113965,18.933972,127.72,127.7,0.063]
[1743515114165,36.96728139,127.71,127.7,0.063]
[1743515114483,38.31763253,127.71,127.7,0.063]
[1743515115387,26.14783253,127.71,127.7,0.063]
[1743515115983,18.31763253,127.71,127.7,0.063]
[1743515117971,26.14623253,127.74,127.7,0.063]
[1743515118172,7.8253,127.79,127.71,7.74]
[1743515118375,18.31763253,127.78,127.74,20.0]
[1743515119371,18.31763253,127.77,127.74,20.0]
[1743515119591,18.31763253,127.76,127.74,20.0]
[1743515119779,18.31763253,127.75,127.74,20.0]
[1743515119990,18.31763253,127.77,127.74,20.0]
[1743515120495,18.31763253,127.76,127.74,20.0]
[1743515120676,18.31763253,127.77,127.74,20.0]
[1743515120877,9.5012,127.81,127.74,27.8283]
[1743515121197,18.31763253,127.79,127.74,27.8283]
[1743515121487,18.31763253,127.77,127.74,20.0]
[1743515122288,18.31763253,127.78,127.74,27.8283]
[1743515122469,18.31763253,127.79,127.74,27.8283]
[1743515122676,18.31763253,127.8,127.74,27.8283]
[1743515122887,18.31763253,127.79,127.74,27.8283]
[1743515123085,18.31763253,127.8,127.74,27.8283]
[1743515123589,0.03,127.81,127.77,18.64964886]
[1743515123789,0.03,127.81,127.79,18.64964886]
[1743515124689,0.03,127.81,127.8,0.28432314]
[1743515125086,7.85,127.88,127.82,20.0]
[1743515125290,18.31763253,127.87,127.82,20.0]
[1743515125590,18.31763253,127.87,127.82,27.8229]
[1743515125896,26.13803253,127.87,127.82,27.8229]
[1743515126097,7.8204,127.87,127.82,27.8229]
[1743515126296,26.13803253,127.87,127.83,7.74]
[1743515126481,18.31763253,127.86,127.83,7.74]
[1743515127586,0.03,127.88,127.83,15.5627]
[1743515128000,18.34763253,127.88,127.83,15.5627]
[1743515128492,18.34763253,127.88,127.84,18.64964886]
[1743515128798,0.03,127.88,127.84,18.64964886]
[1743515129400,7.8498,127.88,127.84,18.64964886]
[1743515129695,18.31763253,127.86,127.85,20.0]
[1743515129905,26.13823253,127.87,127.85,20.0]
[1743515130086,0.03,127.86,127.85,20.0]
[1743515130282,18.34763253,127.86,127.83,7.74]
[1743515130477,18.31763253,127.85,127.83,7.74]
[1743515130885,18.34763253,127.86,127.83,7.74]
[1743515131212,18.31763253,127.85,127.83,7.74]
[1743515131697,26.16903253,127.86,127.83,7.74]
[1743515131900,18.34763253,127.86,127.83,7.74]
[1743515132101,0.03,127.86,127.83,15.5627]
[1743515133296,18.34763253,127.86,127.83,7.74]
[1743515133491,18.31763253,127.84,127.83,20.0]
[1743515133679,18.34763253,127.86,127.83,20.0]
[1743515134002,18.34763253,127.86,127.83,27.8228]
[1743515134399,18.34763253,127.86,127.83,20.0]
[1743515135104,18.31763253,127.84,127.83,20.0]
[1743515135492,18.31763253,127.85,127.83,20.0]
[1743515135892,18.31763253,127.84,127.81,7.824]
[1743515136113,18.31763253,127.85,127.81,15.544]
[1743515136609,18.34763253,127.86,127.82,18.64964886]
[1743515137408,0.03,127.86,127.85,20.0]
[1743515137795,0.03,127.86,127.85,27.8216]
[1743515140194,0.03,127.86,127.85,46.755572]
[1743515140402,0.03,127.86,127.85,48.396672]
[1743515142604,0.03,127.86,127.85,46.47124886]
[1743515144104,0.03,127.88,127.86,0.28432314]
[1743515144302,0.03,127.88,127.87,34.15004886]
[1743515144605,0.03,127.88,127.87,7.68]
[1743515144988,0.03,127.88,127.87,15.5004]
[1743515146000,18.34763253,127.88,127.85,27.8214]
[1743515146226,18.31763253,127.87,127.83,32.70824886]
[1743515146399,18.31763253,127.87,127.83,18.64964886]
[1743515146595,18.31763253,127.87,127.83,26.47234886]
[1743515146789,18.31763253,127.87,127.83,18.64964886]
[1743515147200,18.31763253,127.87,127.83,26.47234886]
[1743515147400,0.03,127.88,127.83,26.47234886]
[1743515147401,0.03,127.88,127.84,18.933972]
[1743515148118,18.31763253,127.85,127.81,0.063]
[1743515148317,18.31763253,127.83,127.81,0.063]
[1743515148804,26.14013253,127.84,127.81,0.063]
[1743515149000,7.821,127.86,127.81,0.063]
[1743515149197,18.31763253,127.85,127.81,0.063]
[1743515149402,18.31763253,127.83,127.81,0.063]
[1743515150507,7.8225,127.84,127.81,0.063]
[1743515150706,18.31763253,127.84,127.81,0.063]
[1743515151027,18.31763253,127.83,127.81,0.063]
[1743515151726,18.31763253,127.82,127.81,0.063]
[1743515152303,27.3715,127.87,127.81,0.063]
[1743515152607,18.31763253,127.83,127.81,0.063]
[1743515153320,18.31763253,127.82,127.81,0.063]
[1743515153521,18.31763253,127.83,127.81,0.063]
[1743515153704,0.03,127.87,127.81,0.063]
[1743515153903,18.31763253,127.85,127.81,0.063]
[1743515154103,18.31763253,127.84,127.81,0.063]
[1743515154305,18.31763253,127.82,127.81,20.063]
[1743515154517,18.31763253,127.82,127.81,0.063]
[1743515154718,26.14113253,127.82,127.81,0.063]
[1743515155107,18.31763253,127.82,127.81,0.063]
[1743515155510,26.14093253,127.83,127.81,0.063]
[1743515155713,18.31763253,127.82,127.81,0.063]
[1743515156513,18.31763253,127.83,127.81,0.063]
[1743515156909,18.31763253,127.82,127.81,0.063]
[1743515157422,20.24525567,127.82,127.81,0.0001]
[1743515157722,18.933972,127.81,127.71,7.68]
[1743515157902,11.47703607,127.75,127.71,7.68]
[1743515158101,11.47703607,127.76,127.71,7.68]
[1743515158716,11.47703607,127.76,127.71,15.5096]
[1743515158931,11.47703607,127.78,127.72,18.64964886]
[1743515159334,11.47703607,127.77,127.72,18.64964886]
[1743515160308,11.47703607,127.77,127.73,7.829]
[1743515160508,11.47703607,127.78,127.73,7.829]
[1743515160911,11.47703607,127.79,127.74,18.64964886]
[1743515161116,8.2537,127.82,127.74,18.64964886]
[1743515161117,11.47703607,127.8,127.74,18.64964886]
[1743515161313,0.03,127.88,127.81,20.0]
[1743515161513,11.50703607,127.87,127.82,7.68]
[1743515162425,11.50703607,127.87,127.83,7.8228]
[1743515162724,11.47703607,127.86,127.82,15.5032]
[1743515162927,11.47703607,127.85,127.82,7.68]
[1743515163115,11.47703607,127.83,127.79,225.34]
[1743515163718,18.3392908,127.83,127.79,233.1651]
[1743515164031,18.3392908,127.8,127.78,7.66]
[1743515164332,18.3392908,127.79,127.74,15.5084]
[1743515164519,18.3392908,127.78,127.74,15.5084]
[1743515164713,18.3392908,127.79,127.75,0.063]
[1743515165427,18.3392908,127.8,127.75,18.996972]
[1743515166011,18.3392908,127.79,127.75,0.063]
[1743515166217,7.8542,127.81,127.75,0.063]
[1743515166218,18.3392908,127.78,127.75,0.063]
[1743515166413,18.3392908,127.77,127.75,0.063]
[1743515167232,0.03,127.81,127.75,0.063]
[1743515167233,18.3392908,127.78,127.75,0.063]
[1743515167534,18.3392908,127.8,127.75,0.063]
[1743515167743,0.03,127.81,127.75,18.71264886]
[1743515167948,0.03,127.81,127.78,20.0]
[1743515168449,0.03,127.81,127.79,7.7]
[1743515170421,0.03,127.81,127.78,27.8257]
[1743515170422,0.03,127.81,127.78,20.0]
[1743515170624,18.3392908,127.8,127.78,20.0]
[1743515170916,18.3692908,127.81,127.78,20.0]
[1743515171318,0.03,127.81,127.78,20.0]
[1743515171634,0.03,127.81,127.78,27.8258]
[1743515173278,18.3392908,127.79,127.75,0.063]
[1743515173441,18.3392908,127.77,127.75,0.063]
[1743515173638,19.8855908,127.8,127.75,20.063]
[1743515173948,18.3392908,127.78,127.75,20.063]
[1743515174270,1.5463,127.8,127.75,20.063]
[1743515174458,18.3392908,127.79,127.75,20.063]
[1743515174656,19.8855908,127.8,127.75,27.8907]
[1743515174863,0.03,127.81,127.76,18.64964886]
[1743515175652,18.3392908,127.8,127.77,20.0]
[1743515175851,26.1935908,127.81,127.77,20.0]
[1743515176053,0.03,127.81,127.77,20.0]
[1743515176289,18.3692908,127.81,127.78,20.0]
[1743515176467,26.1933908,127.81,127.78,20.0]
[1743515176770,26.1639908,127.8,127.78,20.0]
[1743515177143,26.1935908,127.81,127.78,20.0]
[1743515177349,0.03,127.81,127.78,20.0]
[1743515177578,7.8541,127.81,127.78,20.0]
[1743515177742,0.03,127.81,127.78,20.0]
[1743515178059,0.03,127.81,127.78,35.5859]
[1743515179459,0.03,127.81,127.79,18.933972]
[1743515179662,0.03,127.81,127.79,38.933972]
[1743515180963,0.03,127.81,127.8,26.758672]
[1743515182951,26.1900908,127.87,127.83,20.0]
[1743515183151,7.8508,127.87,127.83,27.8228]
[1743515183365,0.03,127.87,127.83,27.8228]
[1743515183568,26.1897908,127.87,127.83,20.0]
[1743515183846,7.8505,127.87,127.83,20.0]
[1743515184773,26.1897908,127.87,127.84,20.0]
[1743515184968,26.1614908,127.85,127.8,26.47404886]
[1743515185169,26.1614908,127.85,127.8,26.38964886]
[1743515185374,18.3392908,127.84,127.8,18.64964886]
[1743515185674,18.3392908,127.84,127.82,20.0]
[1743515186052,18.3392908,127.84,127.78,26.47524886]
[1743515186252,18.3392908,127.81,127.77,12.03556127]
[1743515186855,18.3392908,127.82,127.77,12.03556127]
[1743515187188,26.1635908,127.81,127.77,19.86196127]
[1743515187358,26.1635908,127.81,127.77,12.03556127]
[1743515187557,6.0793,127.84,127.77,12.03556127]
[1743515187784,18.3392908,127.83,127.77,12.03556127]
[1743515187982,18.3392908,127.82,127.77,12.03556127]
[1743515188285,18.3392908,127.82,127.77,19.75556127]
[1743515188887,18.3392908,127.83,127.77,15.5465]
[1743515189279,18.3392908,127.82,127.77,15.5465]
[1743515189459,18.3392908,127.82,127.77,15.6095]
[1743515189793,7.8228,127.83,127.77,15.6095]
[1743515189959,26.1620908,127.83,127.77,15.6095]
[1743515190670,18.3392908,127.82,127.77,7.783]
[1743515191060,18.3392908,127.79,127.77,7.783]
[1743515191378,18.3392908,127.8,127.77,0.063]
[1743515192272,18.3392908,127.79,127.77,0.063]
[1743515192474,7.8259,127.78,127.77,0.063]
[1743515192671,26.1651908,127.78,127.77,0.063]
[1743515193360,27.7916908,127.78,127.77,0.063]
[1743515193559,34.57611394,127.78,127.77,0.063]
[1743515193872,34.2917908,127.78,127.77,0.063]
[1743515196672,7.8256,127.79,127.77,0.063]
[1743515196867,26.1648908,127.79,127.77,0.063]
[1743515197170,18.3392908,127.78,127.77,0.063]
[1743515198383,18.3392908,127.8,127.77,0.063]
[1743515198959,18.3392908,127.79,127.77,0.063]
[1743515199176,18.3392908,127.78,127.77,0.063]
[1743515199555,0.28432314,127.8,127.77,0.063]
[1743515199777,18.3392908,127.79,127.77,0.063]
[1743515199954,9.4797,127.81,127.77,0.063]
[1743515199955,18.3392908,127.78,127.77,0.063]
[1743515200775,26.1651908,127.78,127.77,0.063]
[1743515201362,45.0991628,127.78,127.77,0.063]
[1743515201781,45.0991628,127.78,127.75,0.063]
[1743515201782,0.28432314,127.76,127.75,0.063]
[1743515201982,38.7959628,127.76,127.75,0.063]
[1743515202688,0.28432314,127.74,127.7,0.063]
[1743515202900,18.3392908,127.71,127.7,0.063]
[1743515205193,26.1694908,127.71,127.7,0.063]
[1743515206468,18.3392908,127.71,127.7,0.063]
[1743515206678,8.11202314,127.75,127.7,0.063]
[1743515206868,18.3392908,127.74,127.7,0.063]
[1743515207070,9.3501,127.76,127.7,27.683]
[1743515207374,27.6893908,127.76,127.71,7.8302]
[1743515207569,18.3392908,127.75,127.7,27.683]
[1743515207770,18.3392908,127.73,127.7,27.683]
[1743515208091,18.3392908,127.72,127.7,7.683]
[1743515208293,18.3392908,127.72,127.7,0.063]
[1743515208685,18.3392908,127.73,127.7,0.063]
[1743515209067,9.3501,127.76,127.7,7.8937]
[1743515209273,18.3392908,127.75,127.7,7.8937]
[1743515209473,7.8278,127.75,127.7,7.8937]
[1743515209679,27.6893908,127.76,127.7,7.8937]
[1743515209872,7.8267,127.77,127.71,7.62]
[1743515210090,18.3392908,127.76,127.71,7.62]
[1743515210295,18.3392908,127.75,127.71,7.62]
[1743515210705,18.3392908,127.76,127.71,7.62]
[1743515211011,18.3392908,127.75,127.71,7.62]
[1743515211389,18.3392908,127.75,127.71,15.4499]
[1743515212432,7.8277,127.76,127.71,15.4499]
[1743515212594,26.1669908,127.76,127.71,15.4499]
[1743515212889,18.3392908,127.75,127.71,15.4499]
[1743515213088,18.3392908,127.75,127.71,7.62]
[1743515213411,18.3392908,127.73,127.71,7.62]
[1743515214228,7.8284,127.74,127.71,7.62]
[1743515214407,18.3392908,127.73,127.7,0.063]
[1743515214610,18.3392908,127.71,127.7,0.063]
[1743515215718,26.1688908,127.72,127.7,0.063]
[1743515216215,7.8296,127.72,127.7,0.063]
[1743515216431,26.1688908,127.72,127.7,0.063]
[1743515216636,7.8296,127.72,127.7,0.063]
[1743515216923,26.1678908,127.74,127.7,0.063]
[1743515217219,18.3392908,127.73,127.7,0.063]
[1743515217402,18.3392908,127.72,127.7,0.063]
[1743515217600,18.3392908,127.71,127.7,0.063]
[1743515217911,26.1694908,127.71,127.7,0.063]
[1743515219702,26.45381394,127.71,127.7,0.063]
[1743515219906,1.82092314,127.73,127.69,0.063]
[1743515219907,32.63891394,127.7,127.69,0.063]
[1743515220820,7.8308,127.7,127.69,0.063]
[1743515221530,26.1695908,127.71,127.69,0.063]
[1743515222021,26.1688908,127.72,127.69,0.063]
[1743515222925,7.829,127.73,127.69,0.063]
[1743515223099,18.3392908,127.74,127.7,20.0]
[1743515223306,7.8271,127.76,127.72,20.0]
[1743515223926,26.1663908,127.76,127.72,20.0]
[1743515224102,18.3392908,127.75,127.72,20.0]
[1743515224302,18.3392908,127.73,127.7,20.0]
[1743515224506,27.67932314,127.76,127.7,20.0]
[1743515224802,7.8271,127.76,127.7,20.0]
[1743515225015,26.1663908,127.76,127.7,20.0]
[1743515225530,18.3392908,127.74,127.7,20.0]
[1743515225702,11.47795385,127.75,127.7,20.0]
[1743515225910,7.8283,127.75,127.7,27.8307]
[1743515226323,19.30625385,127.75,127.7,27.8307]
[1743515227435,11.47795385,127.76,127.7,27.8307]
[1743515227729,0.03,127.81,127.76,20.0]
[1743515227934,18.34676962,127.8,127.74,7.62]
[1743515228112,18.34676962,127.78,127.74,7.62]
[1743515228314,18.34676962,127.77,127.74,7.62]
[1743515228840,18.34676962,127.78,127.74,7.62]
[1743515229029,18.37676962,127.81,127.77,20.0]
[1743515229217,18.37676962,127.81,127.78,20.0]
[1743515229218,0.03,127.81,127.78,20.0]
[1743515229421,0.03,127.81,127.79,15.4653]
[1743515229819,0.03,127.81,127.8,18.64964886]
[1743515230111,0.03,127.81,127.79,15.4653]
[1743515230112,0.03,127.81,127.79,7.64]
[1743515230530,18.37676962,127.81,127.79,7.64]
[1743515232029,7.8247,127.8,127.79,7.64]
[1743515232413,0.03,127.81,127.79,7.64]
[1743515233524,0.03,127.81,127.79,15.4652]
[1743515234121,0.03,127.81,127.8,26.47434886]
[1743515234619,0.03,127.81,127.79,15.4652]
[1743515234935,0.03,127.81,127.79,15.465]
[1743515235333,0.03,127.81,127.8,18.64964886]
[1743515235514,0.03,127.81,127.8,6.53102314]
[1743515235832,0.03,127.81,127.8,25.180672]
[1743515236313,0.03,127.81,127.8,33.005372]
[1743515236830,0.03,127.84,127.83,0.28432314]
[1743515237050,0.03,127.84,127.83,18.933972]
[1743515238433,0.03,127.87,127.86,20.0]
[1743515238629,0.03,127.87,127.86,46.26964886]
[1743515239411,0.03,127.87,127.86,46.553972]
[1743515239615,0.03,127.87,127.86,54.445172]
[1743515239848,0.0001,127.87,127.86,54.445172]
[1743515240019,0.03,127.89,127.87,38.933972]
[1743515240333,0.03,127.9,127.87,38.933972]
[1743515240334,0.0001,127.9,127.89,38.933972]
[1743515241334,0.0001,127.9,127.89,18.933972]
[1743515241720,0.0001,127.9,127.89,38.933972]
[1743515242322,0.0001,127.9,127.89,46.753172]
[1743515244241,0.0001,127.9,127.89,26.753172]
[1743515244552,18.37676962,127.94,127.91,20.0]
[1743515244719,18.34676962,127.93,127.91,20.0]
[1743515245034,18.37676962,127.94,127.91,20.0]
[1743515245235,18.37676962,127.94,127.88,15.4396]
[1743515245535,18.34676962,127.92,127.88,7.62]
[1743515245739,18.34676962,127.93,127.88,7.62]
[1743515246042,18.37676962,127.94,127.88,15.4398]
[1743515246241,0.03,127.94,127.89,18.64964886]
[1743515246531,0.03,127.94,127.89,26.46844886]
[1743515247344,18.37676962,127.94,127.89,18.64964886]
[1743515247516,0.03,127.94,127.89,26.46854886]
[1743515247837,0.03,127.94,127.9,18.64964886]
[1743515248217,0.03,127.94,127.92,20.0]
[1743515248430,0.03,127.94,127.91,7.8174]
[1743515248826,0.03,127.94,127.89,18.64964886]
[1743515249121,0.03,127.94,127.93,38.64964886]
[1743515249335,0.03,127.94,127.93,46.26964886]
[1743515249639,0.03,127.94,127.93,46.553972]
[1743515250340,0.03,127.94,127.93,54.370672]
[1743515250647,0.03,127.94,127.93,74.370672]
[1743515251030,0.03,127.94,127.93,54.370672]
[1743515251228,0.03,127.94,127.93,46.26964886]
[1743515251545,0.03,127.94,127.93,20.0]
[1743515252323,0.03,127.94,127.91,7.72]
[1743515252740,18.37676962,127.94,127.9,7.72]
[1743515253226,0.03,127.94,127.9,7.72]
[1743515253627,0.03,127.94,127.9,15.5383]
[1743515254233,0.03,127.94,127.91,18.64964886]
[1743515254443,0.03,127.94,127.93,20.0]
[1743515254643,0.03,127.94,127.93,38.64964886]
[1743515255337,0.03,127.94,127.93,38.933972]
[1743515255535,0.03,127.94,127.93,58.933972]
[1743515255735,0.03,127.94,127.93,74.496172]
[1743515257739,500.0,128.0,127.94,0.28432314]
[1743515257969,18.34676962,127.98,127.93,20.0]
[1743515258264,18.34676962,127.98,127.92,54.14654886]
[1743515258464,469.81262563,128.0,127.92,54.14654886]
[1743515258762,18.34676962,127.99,127.92,54.14654886]
[1743515259048,18.34676962,127.99,127.93,0.28432314]
[1743515259236,462.00012563,128.0,127.93,0.28432314]
[1743515259551,462.00012563,128.0,127.96,0.28432314]
[1743515259851,462.00012563,128.0,127.97,7.68]
[1743515260246,462.00012563,128.0,127.98,18.64964886]
[1743515260648,462.00012563,128.0,127.97,7.68]
[1743515261848,0.03,127.99,127.97,7.68]
[1743515262050,0.03,127.99,127.97,15.4942]
[1743515262569,0.03,127.99,127.97,7.68]
[1743515262932,0.03,127.99,127.97,15.4942]
[1743515263132,0.03,127.99,127.98,18.64964886]
[1743515263360,0.03,127.99,127.97,15.4942]
[1743515263675,0.03,127.99,127.98,18.933972]
[1743515264233,0.03,127.99,127.98,26.747672]
[1743515264460,462.00012563,128.0,127.99,38.933972]
[1743515266280,417.93432563,128.0,127.99,46.747072]
[1743515266587,221.64981909,128.0,127.99,46.747072]
[1743515267252,194.51592843,128.0,127.99,46.747072]
[1743515267655,194.51592843,128.0,127.99,49.56015018]
[1743515268877,57.88460827,128.0,127.99,49.56015018]
[1743515269081,4.983e-05,128.0,127.99,79.42676414]
[1743515269259,2.8102373,128.07,128.03,0.28432314]
[1743515269457,2.8102373,128.07,128.06,20.0]
[1743515270189,2.8102373,128.07,128.06,40.0]
[1743515270369,2.3102373,128.07,128.06,38.933972]
[1743515270569,2.3102373,128.07,128.06,46.742772]
[1743515271572,2.3102373,128.07,128.06,66.742772]
[1743515271800,2.3102373,128.07,128.06,46.742772]
[1743515272105,2.3102373,128.07,128.06,28.09312314]
[1743515272689,2.3102373,128.07,128.03,7.8106]
[1743515272883,2.3102373,128.07,128.04,7.66]
[1743515273185,2.3102373,128.07,128.05,18.933972]
[1743515273586,2.3102373,128.07,128.04,7.66]
[1743515275804,10.1185373,128.07,128.04,7.66]
[1743515276096,28.46530692,128.07,128.04,7.66]
[1743515276585,28.46530692,128.07,128.02,15.4711]
[1743515276904,20.65700692,128.07,128.02,15.4711]
[1743515277091,2.3102373,128.07,128.02,15.4711]
[1743515277290,2.3102373,128.07,128.03,0.28432314]
[1743515278885,2.3102373,128.07,128.03,8.09472314]
[1743515279287,2.3102373,128.07,128.03,27.62132314]
[1743515279692,2.3102373,128.07,128.05,0.28432314]
[1743515280695,2.3102373,128.07,128.06,7.95096157]
[1743515281412,2.3102373,128.07,128.05,7.8092]
[1743515282085,10.1185373,128.07,128.04,7.64]
[1743515282278,1.5417,128.06,128.02,7.8112]
[1743515282483,1.5417,128.06,128.02,15.4512]
[1743515282890,2.3102373,128.07,128.02,34.9793]
[1743515283426,2.3102373,128.07,128.03,20.28432314]
[1743515283595,2.3102373,128.07,128.03,20.0]
[1743515283803,2.3102373,128.07,128.02,34.9793]
[1743515284123,2.3102373,128.07,128.02,15.4512]
[1743515285005,2.3102373,128.07,128.03,0.28432314]
[1743515285213,2.3102373,128.07,128.05,0.28432314]
[1743515285392,2.3102373,128.07,128.03,0.28432314]
[1743515286291,2.3102373,128.07,128.05,0.28432314]
[1743515287210,2.3102373,128.07,128.05,8.09352314]
[1743515288007,2.3102373,128.07,128.04,7.8098]
[1743515288223,2.3102373,128.07,128.03,8.09472314]
[1743515288930,2.3102373,128.07,128.03,27.62132314]
[1743515289123,2.3102373,128.07,128.05,0.28432314]
[1743515289320,2.3102373,128.07,128.05,8.09342314]
[1743515290397,2.3102373,128.07,128.05,7.8091]
[1743515291524,2.3102373,128.07,128.06,38.933972]
[1743515291902,2.3102373,128.07,128.06,0.28432314]
[1743515292509,2.3102373,128.07,128.06,7.7]
[1743515292900,2.3102373,128.07,128.06,10.54646775]
[1743515293096,2.3102373,128.07,128.06,10.83079089]
[1743515293500,2.3102373,128.07,128.06,57.28923975]
[1743515294113,0.03,128.12,128.06,78.48228308]
[1743515294303,11.44475109,128.12,128.07,0.28432314]
[1743515294503,0.03,128.12,128.07,0.28432314]
[1743515295239,11.44475109,128.12,128.06,35.0308]
[1743515295434,0.03,128.12,128.06,35.0308]
[1743515296604,0.03,128.12,128.07,0.28432314]
[1743515297825,0.03,128.12,128.1,7.8064]